{"text_format":"1","workbook":"xlsx","n_sheets":3,"sheets":["Sheet1","Sheet2","sheet3"],"not_rendered":{"charts":0,"images":5,"macros":1,"external_links":0,"defined_names":6,"comments":0,"pivot_tables":0},"unopened":[],"bounds":{"document_bytes":16777216,"sheet_cells":100000,"rows_first":2000,"rows_last":500,"rows_between":2000,"halvings":0,"cell_chars":16384,"cell_head_chars":4096},"cells_cut":0,"cells_raw":0,"read":"whole","date_system":"1900"}

{"sheet":"Sheet1","index":0,"n_rows":23,"n_cols":9,"rows_kept":23,"cut":false,"hidden":false,"merged":[[4,3,4,4],[2,4,2,5],[0,2,0,8]]}
[null,null,"واجهة ادخال البيانات"]
[]
[]
[]
[null,null,"الاسم الكامل"]
[]
[null,null,"الرقم الرمزي",null,null,"تاريخ الحصول عليها",null,null,"المركز"]
[]
[null,null,"رقم الهوية",null,null,"تاريخ المباشرة الاولى",null,null,"القسم"]
[]
[null,null,"التولد",null,null,"تاريخ المباشرة الثانية",null,null,"الشعبة"]
[]
[null,null,"الحالة الاجتماعية",null,null,"نوع التعيين",null,null,"المنصب"]
[]
[null,null,"هل لدية شهيد او سجين ",null,null,"العنوان الوظيفي",null,null,"الخدمة المضافة"]
[]
[null,null,"درجة القربى",null,null,"الدرجة",null,null,"مجموع سنوات الخدمة"]
[]
[null,null,"الشهادة الحالية",null,null,"المرحلة"]
[]
[null,null,"الاختصاص الدقيق",null,null,"تاريخ اخر علاوة"]
[]
[null,null,"الجهة المانحة",null,null,"تاريخ اخر ترقية"]

{"sheet":"Sheet2","index":1,"n_rows":750,"n_cols":30,"rows_kept":750,"cut":false,"hidden":false,"merged":[]}
[]
[null,"الاسم الكامل","الرقم الرمزي","رقم الهوية","التولد","الحالة الاجتماعية","هل لديه شهيد او سحين سياسي","درجة القربى","الشهادة الحالية","الاختصاص الدقيق","الجهة المانحة للشهادة","تاريخ الحصول عليها","تاريخ المباشرة الاولى","تاريخ المباشرة الثانية","نوع التعيين","العنوان الوظيفي","الدرجة","المرحلة","تاريخ اخر علاوة","تاريخ اخر ترقية","المركز","القسم","الشعبة","المنصب","الخدمة المضافة","مجموع سنوات الخدمة",null,null,"الاسم ","رقم الصف"]
[null,"ابتسام محمد حسن لازم",39292,null,"1972-11-27",null,null,null,"بكلوريوس هندسة ","تقنيات حاسوب ","مدينة العلم",2012,"1989-08-17",null,null,"رئيس مهندسين تقنيين",3,null,null,null,null,null,null,null,null,{"$f":"DATEDIF(M4,TODAY(),\"y\") &  \"سنة\"  & DATEDIF(M4,TODAY(),\"ym\")&\"شهر\" &  DATEDIF(M4,TODAY(),\"md\")& \"يوم\"","v":"35سنة8شهر16يوم"}]
[null,"احسان علي كاظم علي",66605,"U 871","1974-07-29",null,null,null,"ماجستير هندسة ","الكترونيك واتصالات  ","جامعة بغداد",2014,"1988-10-02",null,null,"رئيس مهندسين اقدم",2,null,null,null,null,null,null,null,null,"احمد ناظم محمد خلف",null,null,"احمد ناظم محمد خلف",{"$f":"MATCH(AC4,B:B,0)","v":5}]
[null,"احمد ناظم محمد خلف",102776,null,"1985-08-08",null,null,null,"بكالوريوس هندسة ","سيطرة ونظم  ","الجامعة التكنولوجية",2007,"2005-11-22",null,null,"مهندس أقدم ",5,null,null,null,null,null,null,null,null,"34سنة7شهر6يوم"]
[null,"احمد هادي فرحان شلال",66631,"U 418","1972-01-13",null,null,null,"بكالوريوس هندسة"," كهرباء ","الجامعة التكنولوجية ",1993,"1989-11-12",null,null,"رئيس مهندسين اقدم",2,null,null,null,null,null,null,null,null,"26سنة1شهر8يوم"]
[null,"اسامة خيري سلمان بوهي",49522,"U 1012","1977-03-25",null,null,null,"بكالوريوس ","فيزياء","جامعة بغداد",2000,"1998-05-10",null,null," رئيس فيزياويين",3,null,null,null,null,null,null,null,null,"28سنة8شهر22يوم"]
[null,"اسامة كاظم وذيح كيطان",70602,"U 679","1978-05-28",null,null,null,"دبلوم فني ","سيطرة ","المعهد التقني للكهرباء والالكترون",1998,"1995-09-27",null,null,"مدير فني ",3,null,null,null,null,null,null,null,null,"26سنة7شهر9يوم"]
[null,"اسراء صاحب ظاهر حبيب",42651,"U 270","1980-07-28",null,null,null,"دبلوم فني ","الكترونيك","معهد تكنولوجيا",2001,"1997-11-09",null,null,"معاون مدير فني",4,null,null,null,null,null,null,null,null,"32سنة5شهر20يوم"]
[null,"اسراء عدنان لفتة كزار",39306,"U 715","1971-11-04",null,null,null,"بكالوريوس هندسة ","ميكانيك  ","الجامعة التكنولوجية",1994,"1991-12-29",null,null,"رئيس مهندسين اقدم",2,null,null,null,null,null,null,null,null,"26سنة8شهر29يوم"]
[null,"امال علي عبيد خضير",69221,"U434","1970-09-29",null,null,null,"دبلوم فني ","الكترونيك","معهد البعث ",1991,"1997-09-20",null,null,"مدير فني",3,null,null,null,null,null,null,null,null,"124سنة5شهر18يوم"]
[null,"امل سلمان شذر راضي",20648,"Y 1544","1967-07-01",null,null,null,"بكالوريوس هندسة"," كهرباء ","الجامعة المستنصرية ",2000,null,null,null,"رئيس مهندسين اقدم",2,null,null,null,null,null,null,null,null,"124سنة5شهر18يوم"]
[null,"أمين جبار عباس ",45934,null,"1967/00/00",null,null,null,"ماجستير فيزياء ","تكنولوجيا الليزر ","الجامعة التكنولوجية",2002,null,null,null,"رئيس فيزياويين أقدم ",2,null,null,null,null,null,null,null,null,"35سنة8شهر14يوم"]
[null,"انتصار عبدالكريم عثمان ",67921,"U 441","1972-04-07",null,null,null,"بكالوريوس هندسة ","تقنيات الحاسوب ","كلية السلام الجامعة ",2017,"1988-10-04",null,null,"رئيس مهندسين تقنيين أقدم ",2,null,null,null,null,null,null,null,null,"124سنة5شهر18يوم"]
[null,"انور عبدالرضا حسن غلطة",10626,"K 508","1971-03-22",null,null,null,"بكالوريوس هندسة ","ميكانيك  ","مستنصرية",1995,null,null,null,"رئيس مهندسين ",3,null,null,null,null,null,null,null,null,"24سنة10شهر21يوم"]
[null,"ايمان غازي شريف ناصح",79197,"U 546","1974-06-04",null,null,null,"دبلوم فني ","حاسبات ","معهد الادارة الرصافة ",1995,"1999-07-28",null,null,"معاون مدير فني",4,null,null,null,null,null,null,null,null,"124سنة5شهر18يوم"]
[null,"أيناس فوزي عاشور ",23329,null,"1978-08-31",null,null,null,"بكلوريوس ","رياضيات ",null,null,null,null,null,"معاون رئيس مبرمجين ",4,null,null,null,null,null,null,null,null,"33سنة6شهر24يوم"]
[null,"بتول شهاب حبيب عبد",29556,"U 552","1971-08-27",null,null,null,"بكالوريوس هندسة ","انتاج ومعادن ","الجامعة التكنولوجية ",2014,"1990-11-25",null,null,"رئيس مهندسين اقدم",2,null,null,null,null,null,null,null,null,"124سنة5شهر18يوم"]
[null,"بسام صالح مهدي صالح ",70981,null,"1974-05-31",null,null,null,"دبلوم فني ",null,"معهد التكنولوجيا",1995,null,null,null,"رئيس ملاحظين فنيين",5,null,null,null,null,null,null,null,null,"34سنة6شهر5يوم"]
[null,"بسعاد محمد سعود عزيز",67962,"U 972","1973-12-20",null,null,null,"ماجستير هندسة ","ليزر  ","الجامعة التكنولوجية",2014,"1989-12-13",null,null,"رئيس مهندسين أقدم",2,null,null,null,null,null,null,null,null,"22سنة10شهر7يوم"]
[null,"ثامر عبدالرسول فواز سطام",86525,"U 543","1969-10-01",null,null,null,"اعدادية ","فني كهرباء ","اعدادية الصناعة",1988,"2001-08-11",null,null," مدير فني",3,null,null,null,null,null,null,null,null,"45سنة7شهر17يوم"]
[null,"جواد كاظم محي صالح",65056,"U 955","1960-10-03",null,null,null,"بكالوريوس هندسة ","كهرباء  ","الجامعة التكنولوجية",1983,"1978-11-01",null,null,"رئيس مهندسين اقدم",2,null,null,null,null,null,null,null,null,"33سنة7شهر5يوم"]
[null,"حامد مهدي كريم طلال",66761,"U 400","1970-09-28",null,null,null,"بكالوريوس هندسة ","ميكانيك  ","الجامعة التكنولوجية ",1993,"1990-11-13",null,null,"رئيس مهندسين اقدم",2,null,null,null,null,null,null,null,null,"42سنة8شهر9يوم"]
[null,"حسن عباس حسين شاطي",65714,"U 254","1967-08-07",null,null,null,"ماجستير هندسة ","سيطرة ونظم  ","جامعة فلاديمير",2010,"1981-10-09",null,null,"رئيس مهندسين اقدم",2,null,null,null,null,null,null,null,null,"16سنة9شهر27يوم"]
[null,"حسن علي رسول علي",109551,"U931","1980-05-15",null,null,null,"بكالوريوس هندسة ","ميكانيك  ","الجامعة المستنصرية",2002,"2007-08-22",null,null,"مهندس اقدم",5,null,null,null,null,null,null,null,null,"35سنة7شهر4يوم"]
[null,"حسين تبينة كاظم جبر",35777,"U 069","1969-03-03",null,null,null,"دكتوراه هندسة  ","سيطرة ","فلاديمير روسيا",2010,"1988-11-14",null,null,"رئيس مهندسين اقدم",2,null,null,null,null,null,null,null,null,"124سنة5شهر18يوم"]
[null,"حسين علاء لطيف ",41084,null,"1977/00/00",null,null,null,"ماجستير علوم ","كيمياء ","جامعة جواهد لال نهرو الهند",2015,null,null,null,"رئيس كيمياويين ",3,null,null,null,null,null,null,null,null,"124سنة5شهر18يوم"]
[null,"حسين علي عيسى مري ",65757,null,"1966-11-21",null,null,null,"بكلوريوس هندسة ","كهرباء / الكترونيك ","الجامعة التكنولوجية",1991,null,null,null,"رئيس مهندسين اقدم",2,null,null,null,null,null,null,null,null,"36سنة5شهر14يوم"]
[null,"حنان صبحي صالح ابراهيم",55190,"U 383","1972-12-12",null,null,null,"اعدادية ","فني الكترونيك ","اعدادية صناعة ",1990,"1988-01-04",null,null," مدير فني",3,null,null,null,null,null,null,null,null,"124سنة5شهر18يوم"]
[null,"حيدر جاسم محمد هدو ",8702,null,"1970-04-16",null,null,null,"بكلوريوس هندسة ","ميكانيك ","جامعة بغداد",1993,null,null,null,"رئيس مهندسين أقدم ",2,null,null,null,null,null,null,null,null,"37سنة1شهر7يوم"]
[null,"حيدر جياد مهدي هزاع",68111,"U 432","1969-01-20",null,null,null,"اعدادية فني ","ميكانيك ","اعدادية صناعة ",1988,"1987-05-11",null,null," مدير فني",3,null,null,null,null,null,null,null,null,"124سنة5شهر18يوم"]
[null,"حيدر حمودي عبد الهادي ",39624,null,"1970-10-03",null,null,null,"بكلوريويس هندسة ","ميكانيك ","الجامعة التكنولوجية",1995,null,null,null,"رئيس مهندسين أقدم ",2,null,null,null,null,null,null,null,null,"25سنة3شهر27يوم"]
[null,"حيدر محمد عجيل موحي",49913,"U 1011","1976-05-29",null,null,null,"بكالوريوس ","فيزياء","بغداد",2000,"1999-02-22",null,null,"رئيس فيزياويين",3,null,null,null,null,null,null,null,null,"32سنة6شهر15يوم"]
[null,"خضير جسام ابراهيم خضير",65803,"U 736","1970-05-23",null,null,null,"بكالوريوس هندسة ","كهرباء ","الجامعة التكنولوجية ",1995,"1991-12-03",null,null,"رئيس مهندسين اقدم",2,null,null,null,null,null,null,null,null,"27سنة6شهر14يوم"]
[null,"خنساء قاسم امين حسن",56529,"U922","1975-08-10",null,null,null,"بكالوريوس ","فيزياء","جامعة بغداد",1999,"1996-12-04",null,null,"معاون رئيس فيزياويين",4,null,null,null,null,null,null,null,null,{"$f":"DATEDIF(M36,TODAY(),\"y\") &  \"سنة\"  & DATEDIF(M36,TODAY(),\"ym\")&\"شهر\" &  DATEDIF(M36,TODAY(),\"md\")& \"يوم\"","v":"42سنة2شهر26يوم"}]
[null,"دريد لطفي عبدالله نعمان",65821,"U 887","1965-01-21",null,null,null,"بكالوريوس هندسة  ","انتاج ومعادن ","الجامعة التكنولوجية ",2004,"1982-03-23",null,null,"رئيس مهندسين اقدم",2,null,null,null,null,null,null,null,null,"26سنة6شهر17يوم"]
[null,"ذكرى عباس علي عيسى",42951,"U544","1970-09-09",null,null,null,"بكالوريوس هندسة ","تقنيات حاسبات  ","كلية مدينة العلم",2014,"1997-12-01",null,null,"معاون رئيس مهندسين",4,null,null,null,null,null,null,null,null,"124سنة5شهر18يوم"]
[null,"راميا شاكر محمود جاسم ",69507,null,"1980-03-22",null,null,null,"بكالوريوس ","فيزياء","الجامعة التكنولوجية ",2002,null,null,null,"معاون رئيس فيزياويين",4,null,null,null,null,null,null,null,null,"22سنة6شهر7يوم"]
[null,"رائق نعمة عبدالرزاق صالح",86584,"U 614","1969-12-02",null,null,null,"اعدادية ","فني كيمياوي ","مركز المعتصم ",1988,"2001-12-11",null,null," مدير فني",3,null,null,null,null,null,null,null,null,"25سنة8شهر19يوم"]
[null,"رسل علاء حسين عباس",41191,"U 934","1980-06-21",null,null,null,"بكالوريوس ","علوم حاسبات","جامعة بغداد",2002,"1998-09-30",null,null,"رئيس مبرمجين",3,null,null,null,null,null,null,null,null,"28سنة6شهر22يوم"]
[null,"رغد عبدالساده بدر رباط",69019,"U940","1977-03-29",null,null,null,"بكالوريوس  ","رياضيات","الجامعة المستنصرية",1998,"1995-11-27",null,null,"رئيس مبرمجين",3,null,null,null,null,null,null,null,null,"27سنة5شهر11يوم"]
[null,"ريم رياض حسن ناصر",71188,"U 939","1979-10-01",null,null,null,"بكالوريوس هندسة ","سيطرة ونظم  ","الجامعة التكنولوجيا ",2013,"1997-01-07",null,null,"معاون رئيس مهندسين",4,null,null,null,null,null,null,null,null,"23سنة2شهر2يوم"]
[null,"زاهد مهدي حسون احمد",85073,"U 493","1964-02-15",null,null,null,"دبلوم فني ","الكترونيك","معهد تكنولوجيا ",1985,"2001-04-16",null,null,"مدير فني أقدم",2,null,null,null,null,null,null,null,null,"27سنة7شهر30يوم"]
[null,"زهراء عبدالستار سلمان ",70793,"U 456","1980-05-18",null,null,null,"بكالوريوس هندسة ","تقنيات حاسوب  ","كلية السلام الجامعة ",2017,"1996-10-19",null,null,"معاون ر. مهندسين تقنيين",4,null,null,null,null,null,null,null,null,"26سنة8شهر28يوم"]
[null,"زينب منذر عريبي جاسم",63894,"U 452","1980-09-01",null,null,null,"دبلوم فني ","حاسبات ","معهد ادارة / الرصافة",2001,"1997-09-21",null,null,"معاون مدير فني",4,null,null,null,null,null,null,null,null,"34سنة6شهر29يوم"]
[null,"سالم صباح زبالة عباس",54550,"U 557","1970-03-01",null,null,null,"بكالوريوس"," فيزياء","جامعة بغداد ",1993,"1989-11-20",null,null,"رئيس فيزياويين اقدم",2,null,null,null,null,null,null,null,null,"39سنة7شهر0يوم"]
[null,"سجاد جاسب حسين ماجد",36838,"U 880","1967-07-01",null,null,null,"ماجستير هندسة ","اتصالات  ","الجامعة التكنولوجيا ",2000,"1984-11-18",null,null,"رئيس مهندسين اقدم",2,null,null,null,null,null,null,null,null,"29سنة1شهر3يوم"]
[null,"سلام محمد هاشم كناد",69728,"U 424","1978-03-02",null,null,null,"دبلوم فني ","سيطرة ","معهد تقني كهرباء والكترونيك ",1998,"1995-05-15",null,null,"مدير فني",3,null,null,null,null,null,null,null,null,"26سنة6شهر0يوم"]
[null,"سمير عبدالرزاق مهدي صالح",50202,"A 785","1970-12-30",null,null,null,"بكالوريوس تربية ","فيزياء","تربية ابن الهيثم",2000,"1997-12-18",null,null,"رئيس فيزياويين",3,null,null,null,null,null,null,null,null,"37سنة8شهر13يوم"]
[null,"سمير كليبان صالح سلمان",67016,"U 901","1972-03-07",null,null,null,"دكتوراه هندسة ","حاسبات ","Uni-MAP",2014,"1986-10-05",null,null,"رئيس مهندسين اقدم",2,null,null,null,null,null,null,null,null,"35سنة8شهر21يوم"]
[null,"سميرة كريم عبد نعمة",67024,"U 458","1969-01-01",null,null,null,"بكالوريوس هندسة ","كهرباء  ","جامعة بغداد ",1992,"1988-09-28",null,null,"رئيس مهندسين أقدم",2,null,null,null,null,null,null,null,null,"24سنة6شهر21يوم"]
[null,"سوسن نجم عبدالله بدر",67032,"U 632","1966-12-31",null,null,null,"بكالوريوس هندسة ","سيطرة ونظم  ","الجامعة التكنولوجية ",1990,"1999-11-28",null,null,"رئيس مهندسين اقدم",2,null,null,null,null,null,null,null,null,"26سنة1شهر21يوم"]
[null,"سيف الدين عبد جبر محسن",69809,"U 896","1973-01-01",null,null,null,"ماجستير هندسة ","ميكانيك ","جامعة سام هيكن بوتم",2014,"1998-04-28",null,null," معاون رئيس مهندسين",4,null,null,null,null,null,null,null,null,"34سنة9شهر20يوم"]
[null,"شاكر حميد بنيان فضيل",47341,"U 217","1965-01-01",null,null,null,"بكالوريوس تربية  ","فيزياء","الجامعة المستنصرية",1989,"1989-08-29",null,null,"رئيس فيزياويين اقدم",2,null,null,null,null,null,null,null,null,"26سنة5شهر17يوم"]
[null,"صباح خلف غافل سلطان",41531,"U 661","1968-04-07",null,null,null,"بكالوريوس تربية"," رياضيات ","جامعة بغداد",1996,"1998-01-01",null,null,"رئيس مبرمجين",3,null,null,null,null,null,null,null,null,"26سنة6شهر9يوم"]
[null,"صفاء قاسم عساف علوان",69851,"U375","1974-08-01",null,null,null,"بكالوريوس ","فيزياء","التربية ابن الهيثم",1996,"1997-12-09",null,null,"رئيس فيزياويين",3,null,null,null,null,null,null,null,null,"33سنة10شهر13يوم"]
[null,"ضحى حسن ابراهيم حمد",69876,"U 446","1971-04-15",null,null,null,"اعدادية ","اداري تجارة ","اعدادية التاجارة",1993,"1990-08-05",null,null," مدير اداري",3,null,null,null,null,null,null,null,null,"27سنة0شهر28يوم"]
[null,"ضياء حسين جاسم محمد",71341,"U 443","1978-04-02",null,null,null,"بكالوريوس هندسة ","تقنيات حاسبات   ","كلية السلام الجامعة ",2015,"1997-05-21",null,null,"معاون رئيس مهندسين تقنيين",4,null,null,null,null,null,null,null,null,"26سنة6شهر17يوم"]
[null,"ضياء كاظم سعيد عبد",69884,"U353","1974-01-03",null,null,null,"بكالوريوس تربية  ","فيزياء","تربية ابن الهيثم",1996,"1997-12-01",null,null,"رئيس فيزياويين",3,null,null,null,null,null,null,null,null,"33سنة0شهر13يوم"]
[null,"ضياء مبدر محمد نجرس",70815,"U 977","1971-05-24",null,null,null,"بكالوريوس اداب ","أعلام ","كلية دجلة الجامعة ",2014,"1991-06-05",null,null," مدير فني",3,null,null,null,null,null,null,null,null,"27سنة10شهر12يوم"]
[null,"ظلال مجيد صالح عبدالرضا",50458,"U 1016","1977-08-27",null,null,null,"ماجستير فيزياء ","ليزر ","الجامعة المستنصرية",2005,"1996-08-06",null,null,"رئيس فيزياويين اقدم",2,null,null,null,null,null,null,null,null,"124سنة5شهر18يوم"]
[null,"عباس فاضل عبد الرحمن ",38423,null,"1967-07-02",null,null,null,"دكتوراه ",null,"جامعة بغداد ",2010,null,null,null,"رئيس محللي انظمة اقدم",2,null,null,null,null,null,null,null,null,"124سنة5شهر18يوم"]
[null,"عبد الامير مناتي مشكور محمد ",43273,null,"1976-05-19",null,null,null,"بكلوريوس هندسة ","تقنيات حاسوب ",null,null,null,null,null,"مهندس أقدم ",5,null,null,null,null,null,null,null,null,"31سنة2شهر28يوم"]
[null,"عبدالرزاق كاظم زين كالوس",42366,"U 340","1974-02-17",null,null,null,"اعدادية ","فني ميكانيك ","مركز المعتصم ",1996,"1993-03-21",null,null," مدير فني",3,null,null,null,null,null,null,null,null,"40سنة5شهر5يوم"]
[null,"عبدالرسول احمد عبدالحسين ",54674,"U 633","1966-03-17",null,null,null,"اعدادية ","فني ميكانيك ","اعدادية صناعة ",1987,"1984-01-13",null,null," مدير فني",3,null,null,null,null,null,null,null,null,"21سنة11شهر4يوم"]
[null,"عبدالكريم عبدالرضا عبدالكريم ",89362,"U 242","1968-03-15",null,null,null,"اعدادية ","فني ميكانيك ","اعدادية صناعة ",1987,"2002-07-14",null,null," مدير فني",3,null,null,null,null,null,null,null,null,"26سنة1شهر13يوم"]
[null,"عدي شريف حمزة ياسين",43338,"U 512","1980-08-25",null,null,null,"ماجستير تربية ","فيزياء ","جامعة بغداد",2010,"1998-05-05",null,null,"معاون رئيس فيزياويين",4,null,null,null,null,null,null,null,null,{"$f":"DATEDIF(M68,TODAY(),\"y\") &  \"سنة\"  & DATEDIF(M68,TODAY(),\"ym\")&\"شهر\" &  DATEDIF(M68,TODAY(),\"md\")& \"يوم\"","v":"33سنة0شهر26يوم"}]
[null,"عدي هشام عبدالستار حلمي",68497,"U 935","1972-04-04",null,null,null,"ماجستير هندسة ","سيطرة ونظم  ","بولطافا التقنية الوطنية",2014,"1991-05-23",null,null,"رئيس مهندسين",3,null,null,null,null,null,null,null,null,"38سنة10شهر30يوم"]
[null,"عطية عبدالرحمن عطية عبدالله",73271,"P 980","1966-07-01",null,null,null,"بكالوريوس ","ادارة واقتصاد ","ادارة واقتصاد",1989,"1985-07-19",null,null,"مدير تدقيق اقدم",2,null,null,null,null,null,null,null,null,"31سنة3شهر17يوم"]
[null,"علي داخل خربيط حافظ",67253,"U 705","1971-07-01",null,null,null,"بكالوريوس هندسة ","كهرباء  ","كلية الرشيد",1996,"1993-03-01",null,null,"رئيس مهندسين اقدم",2,null,null,null,null,null,null,null,null,"16سنة5شهر28يوم"]
[null,"علي عامر محمد عبدالله",115045,"U 163","1978-10-06",null,null,null,"بكالوريوس ","فيزياء","الجامعة التكنولوجية",2009,"2007-12-21",null,null,"فيزياوي اقدم",5,null,null,null,null,null,null,null,null,"20سنة4شهر15يوم"]
[null,"علي عبد جابر عيسى",96431,"U 628","1967-09-19",null,null,null,"اعدادية ","فني ميكانيك ","اعدادية صناعة الكرخ ",1988,"2004-02-03",null,null," مدير فني",3,null,null,null,null,null,null,null,null,"16سنة6شهر8يوم"]
[null,"علي عبدالستار حميد حمادي",113141,"U 151","1988-07-09",null,null,null,"ماجستير هندسة ","كهرباء ","التقنية الهندسية الكهربائية والالكترونية ",2010,"2007-12-10",null,null,"مهندس اقدم",5,null,null,null,null,null,null,null,null,"33سنة5شهر22يوم"]
[null,"عماد راشد عباس حسين",72176,"U 085","1976-12-28",null,null,null,"ابتدائية",null,"ابتدائية ",null,"1990-12-27",null,null,"رئيس حرفيين اقدم",5,null,null,null,null,null,null,null,null,"35سنة6شهر0يوم"]
[null,"عماد قحطان وحيد جمعة",56812,"U521","1964-07-01",null,null,null,"بكالوريوس هندسة ","ميكانيك ","كلية الرافدين",2012,"1988-12-18",null,null," رئيس مهندسين",3,null,null,null,null,null,null,null,null,"25سنة5شهر15يوم"]
[null,"عمار جمعة هاشم شويع",43478,"U209","1980-02-10",null,null,null,"دبلوم فني ","مدني رسم هندسي ","معهد تكنولوجيا ",2002,"1999-01-03",null,null,"معاون مدير فني",4,null,null,null,null,null,null,null,null,"16سنة11شهر29يوم"]
[null,"عمر عادل عبدالرزاق شهاب",65315,"U 100","1968-02-05",null,null,null,"ماجستير هندسة ","سيطرة ونظم  ","الجامعة التكنولوجية ",2002,"2007-06-20",null,null,"رئيس مهندسين اقدم",2,null,null,null,null,null,null,null,null,"32سنة1شهر15يوم"]
[null,"عمر عبدالصمد خلف احمد",70106,"U 055","1974-07-01",null,null,null,"بكالوريوس هندسة ","تقنيات حاسبات  ","كلية السلام الجامعة ",2015,"1992-05-03",null,null,"رئيس مهندسين تقنيين",3,null,null,null,null,null,null,null,null,"31سنة6شهر4يوم"]
[null,"عمر قحطان احمد دليمي",67301,"U 477","1972-10-07",null,null,null,"بكالوريوس هندسة ","كهرباء ","الجامعة التكنولوجية",1996,"1992-12-14",null,null,"رئيس مهندسين اقدم",2,null,null,null,null,null,null,null,null,"31سنة4شهر23يوم"]
[null,"غسان خلف زبون عذار",67326,"U 950","1971-12-12",null,null,null,"ماجستير هندسة ","قدرة كهربائية  ","جامعة هيكنبوتوم",2014,"1993-01-26",null,null,"رئيس مهندسين اقدم",2,null,null,null,null,null,null,null,null,"38سنة4شهر16يوم"]
[null,"غصون ربيع هاشم احمد",38679,"U522","1967-11-08",null,null,null,"دبلوم ","احصاء ","معهد ادارة / الرصافة",1989,"1986-02-02",null,null,"رئيس احصائيين أقدم",2,null,null,null,null,null,null,null,null,"124سنة5شهر18يوم"]
[null,"فائز هادي محمود جاسم  ",39268,null,"1975-01-24",null,null,null,"دكتوراه هندسة",null,"المملكة المتحدة / جامعة هيلدزفيلد",2022,null,null,null,"معاون رئيس مهندسين",4,null,null,null,null,null,null,null,null,"25سنة11شهر15يوم"]
[null,"فارس جابر حسن علي",43540,"U 562","1975-07-09",null,null,null,"هندسة تبريد وتكييف  ",null,"معهد تكنولوجيا ",1998,"1998-07-03",null,null,"معاون ر. مهندسين تقنيين",4,null,null,null,null,null,null,null,null,"40سنة9شهر26يوم"]
[null,"قاسم ظاهر كاظم موسى",54097,"U 379","1967-11-22",null,null,null,"اعدادية ","فني ميكانيك ","اعدادية صناعة ",1987,"1983-08-23",null,null," مدير فني",3,null,null,null,null,null,null,null,null,"124سنة5شهر18يوم"]
[null,"لمياء كاظم جواد كاظم",68780,null,"1970-08-21",null,null,null,"دبلوم فني ","كهرباء ","معهد البعث ",1993,null,null,null,"معاون مدير فني",4,null,null,null,null,null,null,null,null,"26سنة9شهر25يوم"]
[null,"مازن خضير احمد كريم",68799,"U 938","1977-01-15",null,null,null,"بكالوريوس هندسة ","ميكاترونيكس ","جامعة بغداد",2014,"1997-08-24",null,null,"معاون رئيس مهندسين",4,null,null,null,null,null,null,null,null,"22سنة0شهر12يوم"]
[null,"محمد جاسم مطشر جبر",89230,"U 563","1974-05-27",null,null,null,"بكلوريوس هندسة ","تقنيات حاسوب ","كلية مدينة العلم الجامعة",2014,"2002-06-06",null,null,"ر. مهندسين تقنيين",3,null,null,null,null,null,null,null,null,"29سنة3شهر22يوم"]
[null,"محمد سلام فاضل حسن",42481,"U 268","1975-03-03",null,null,null,"دبلوم فني ","ميكانيك ","معهد الامين ",1999,"1995-02-27",null,null,"مدير فني",3,null,null,null,null,null,null,null,null,"21سنة0شهر23يوم"]
[null,"ممدوح عباس ناصر حسين",93769,"U 602","1967-06-08",null,null,null,"بكلوريوس ",null,"كلية مدينة العلم الجامعة",2010,"2003-05-26",null,null,"مهندس أقدم ",5,null,null,null,null,null,null,null,null,"33سنة7شهر25يوم"]
[null,"منى خليل شيحان ضامن",60100,null,"1972-03-23",null,null,null,"دكتوراه هندسة ","ميكانيك ","جامعة UPM الماليزية ",2019,"1990-10-24",null,null,"رئيس مهندسين اقدم",2,null,null,null,null,null,null,null,null,"29سنة6شهر14يوم"]
[null,"منى محمود لطيف مطلك",4448,"U 915","1975-12-18",null,null,null,"بكلوريوس هندسة ","زراعية بستنة  ","جامعة بغداد",1997,"1994-12-04",null,null,"ر. مهندسين زراعيين اقدم",2,null,null,null,null,null,null,null,null,"25سنة5شهر14يوم"]
[null,"مهند مشتت حمادي راضي",43801,"U 929","1980-01-20",null,null,null,"دبلوم فني ","مدني رسم هندسي ","معهد تكنولوجيا بغداد",2002,"1999-01-04",null,null,"معاون مدير فني",4,null,null,null,null,null,null,null,null,"35سنة7شهر2يوم"]
[null,"ميثم صبري جابر عباس",67679,"U 1051","1971-03-01",null,null,null,"دكتوراه هندسة ","الكترونيك واتصالات  ","جامعة بغداد",2013,"1988-11-16",null,null,"رئيس مهندسين اقدم",2,null,null,null,null,null,null,null,null,"34سنة3شهر24يوم"]
[null,"نعماء ابراهيم عبدالله لايذ",30899,"U 571","1968-07-07",null,null,null,"دبلوم فني ","ميكانيك ","معهد التكنولوجيا بغداد",1991,"1990-02-25",null,null,"مدير فني أقدم ",2,null,null,null,null,null,null,null,null,"124سنة5شهر18يوم"]
[null,"هبة ثامر رحيم جبارة",128627,null,"1989-05-09",null,null,null,"بكالوريوس هندسة ",null,"كلية الرافدين",2011,null,null,null,"مهندس أقدم ",5,null,null,null,null,null,null,null,null,"35سنة4شهر26يوم"]
[null,"وداد هاشم محمد علوان",40673,"U 680","1968-03-04",null,null,null,"بكالوريوس هندسة ","تقنيات حاسبات ","جامعة مدينة العلم",2014,"1989-01-23",null,null,"رئيس مشرف بيانات اقدم",4,null,null,null,null,null,null,null,null,"20سنة4شهر2يوم"]
[null,"وسام فلاح حسن كاظم",97268,"U 399","1984-03-14",null,null,null,"بكلوريوس هندسة ","سيطرة ونظم ","الجامعة التكنولوجية",2006,"2004-02-16",null,null,"معاون رئيس مهندسين",4,null,null,null,null,null,null,null,null,"124سنة5شهر18يوم"]
[]
[]
[]
[]
[]
[]
[]
[]
[]
[]
[]
[]
[]
[]
[]
[]
[]
[]
[]
[]
[]
[]
[]
[]
[]
[]
[]
[]
[]
[]
[]
[]
[]
[]
[]
[]
[]
[]
[]
[]
[]
[]
[]
[]
[]
[]
[]
[]
[]
[]
[]
[]
[]
[]
[]
[]
[]
[]
[]
[]
[]
[]
[]
[]
[]
[]
[]
[]
[]
[]
[]
[]
[]
[]
[]
[]
[]
[]
[]
[]
[]
[]
[]
[]
[]
[]
[]
[]
[]
[]
[]
[]
[]
[]
[]
[]
[]
[]
[]
[]
[]
[]
[]
[]
[]
[]
[]
[]
[]
[]
[]
[]
[]
[]
[]
[]
[]
[]
[]
[]
[]
[]
[]
[]
[]
[]
[]
[]
[]
[]
[]
[]
[]
[]
[]
[]
[]
[]
[]
[]
[]
[]
[]
[]
[]
[]
[]
[]
[]
[]
[]
[]
[]
[]
[]
[]
[]
[]
[]
[]
[]
[]
[]
[]
[]
[]
[]
[]
[]
[]
[]
[]
[]
[]
[]
[]
[]
[]
[]
[]
[]
[]
[]
[]
[]
[]
[]
[]
[]
[]
[]
[]
[]
[]
[]
[]
[]
[]
[]
[]
[]
[]
[]
[]
[]
[]
[]
[]
[]
[]
[]
[]
[]
[]
[]
[]
[]
[]
[]
[]
[]
[]
[]
[]
[]
[]
[]
[]
[]
[]
[]
[]
[]
[]
[]
[]
[]
[]
[]
[]
[]
[]
[]
[]
[]
[]
[]
[]
[]
[]
[]
[]
[]
[]
[]
[]
[]
[]
[]
[]
[]
[]
[]
[]
[]
[]
[]
[]
[]
[]
[]
[]
[]
[]
[]
[]
[]
[]
[]
[]
[]
[]
[]
[]
[]
[]
[]
[]
[]
[]
[]
[]
[]
[]
[]
[]
[]
[]
[]
[]
[]
[]
[]
[]
[]
[]
[]
[]
[]
[]
[]
[]
[]
[]
[]
[]
[]
[]
[]
[]
[]
[]
[]
[]
[]
[]
[]
[]
[]
[]
[]
[]
[]
[]
[]
[]
[]
[]
[]
[]
[]
[]
[]
[]
[]
[]
[]
[]
[]
[]
[]
[]
[]
[]
[]
[]
[]
[]
[]
[]
[]
[]
[]
[]
[]
[]
[]
[]
[]
[]
[]
[]
[]
[]
[]
[]
[]
[]
[]
[]
[]
[]
[]
[]
[]
[]
[]
[]
[]
[]
[]
[]
[]
[]
[]
[]
[]
[]
[]
[]
[]
[]
[]
[]
[]
[]
[]
[]
[]
[]
[]
[]
[]
[]
[]
[]
[]
[]
[]
[]
[]
[]
[]
[]
[]
[]
[]
[]
[]
[]
[]
[]
[]
[]
[]
[]
[]
[]
[]
[]
[]
[]
[]
[]
[]
[]
[]
[]
[]
[]
[]
[]
[]
[]
[]
[]
[]
[]
[]
[]
[]
[]
[]
[]
[]
[]
[]
[]
[]
[]
[]
[]
[]
[]
[]
[]
[]
[]
[]
[]
[]
[]
[]
[]
[]
[]
[]
[]
[]
[]
[]
[]
[]
[]
[]
[]
[]
[]
[]
[]
[]
[]
[]
[]
[]
[]
[]
[]
[]
[]
[]
[]
[]
[]
[]
[]
[]
[]
[]
[]
[]
[]
[]
[]
[]
[]
[]
[]
[]
[]
[]
[]
[]
[]
[]
[]
[]
[]
[]
[]
[]
[]
[]
[]
[]
[]
[]
[]
[]
[]
[]
[]
[]
[]
[]
[]
[]
[]
[]
[]
[]
[]
[]
[]
[]
[]
[]
[]
[]
[]
[]
[]
[]
[]
[]
[]
[]
[]
[]
[]
[]
[]
[]
[]
[]
[]
[]
[]
[]
[]
[]
[]
[]
[]
[]
[]
[]
[]
[]
[]
[]
[]
[]
[]
[]
[]
[]
[]
[]
[]
[]
[]
[]
[]
[]
[]
[]
[]
[]
[]
[]
[]
[]
[]
[]
[]
[]
[]
[]
[]
[]
[]
[]
[]
[]
[]
[]
[]
[]
[]
[]
[]
[]
[]
[]
[]
[]
[]
[]
[]
[]
[]
[null,null,null,null,null,null,null,null,null,null,null,null,null,null,null,null,null,null,null,null,null,null,null,null,null,"محمد"]

{"sheet":"sheet3","index":2,"n_rows":0,"n_cols":0,"rows_kept":0,"cut":false,"hidden":false,"merged":[[18,2,18,3],[20,2,20,3],[22,2,22,3],[6,7,6,8],[8,7,8,8],[10,7,10,8],[12,7,12,8],[6,2,6,3],[8,2,8,3],[10,2,10,3],[12,2,12,3],[14,2,14,3],[16,2,16,3],[14,7,14,8],[16,7,16,8],[18,7,18,8],[20,7,20,8],[22,7,22,8],[18,12,18,13],[20,12,20,13],[22,12,22,13],[16,12,16,13],[6,12,6,13],[8,12,8,13],[10,12,10,13],[12,12,12,13],[14,12,14,13]]}